Cogmind - Beta 13 @@@ ROGUE MODE // 2024.05.06 @ 18:57:04 Player: TinyBoulder Result: Destroyed by P-60 Hacker with Shock Rifle Performance ------------- Evolutions (4) 2000 Regions Visited (13) 2600 Robots Destroyed (88) 440 Value Destroyed (3524) 3524 Prototype IDs (30) 600 Alien Tech Used (0) 0 Bonus (2749) 2749 TOTAL SCORE: 11913 Bonus ------- High Alert Combat Kills 53 Follower Combat Kills 200 Entered Garrisons 400 Used RIF Installer 1500 Entered DSFs 500 Aligned with FarCom 300 Friendly Fire -204 Cogmind --------- Core Integrity 0/850 Matter 69/300 Energy 100/100 System Corruption 2% Temperature Cool (0) Movement Hovering (80) Location -6/Factory Parts ------- > --- POWER (1) -------- Backup Power I > --- PROPULSION (3) --- Backup Propulsion I > --- UTILITY (8) ------ 0b10 Alert Chip Relay Coupler [Grunt] (11) > --- WEAPON (3) ------- Backup Laser I Backup Laser I Remote Datajack > --- INVENTORY (5) ---- Relay Coupler [NC] (24) Relay Coupler [Swarmer] (40) Relay Coupler [Swarmer] (35) Relay Coupler [Sentry] (22) Hammer Peak State ------------ > --- POWER ------------ Light Deuterium Engine > --- PROPULSION ------- Aluminum Leg Carbon-fiber Leg Titanium Leg > --- UTILITY ---------- Large Storage Unit 0b10 Alert Chip Improved Targeting Computer Reflective Plating > --- WEAPON ----------- Gauss Rifle Gauss Rifle Gauss Rifle > --- INVENTORY -------- Light Treads Aluminum Leg Wheel Improved Heat Sink Disposable Heat Sink Improved Sensor Array Improved Targeting Computer Relay Coupler [Swarmer] Gauss Rifle Gauss Rifle Gauss Rifle Grenade Launcher Improved Datajack Hammer [Rating: 37] Favorites ----------- Power Ion Engine Engine Ion Engine Power Core Light Nuclear Core Propulsion Light Treads Treads Light Treads Leg Aluminum Leg Wheel Wheel Hover Unit Backup Propulsion I Utility Large Storage Unit Device Heat Sink Storage Large Storage Unit Processor 0b10 Alert Chip Hackware Relay Coupler [Grunt] Protection Reflective Plating Weapon Gauss Rifle Energy Gun Medium Laser Energy Cannon Beam Cannon Ballistic Gun Gauss Rifle Launcher Rocket Launcher Special Weapon Remote Datajack Impact Weapon Hammer Special Melee Weapon Improved Datajack Build | -11 -10 -10 -9 -9 -9 -8 -8 -8 -8 -8 -7 -7 -6 ------- Run | Yrd Mat Min Mat Min Exi Min Mat Gar Mat Gar Fac DSF Fac Slots Evolved 8 | . . . 2 . . . 2 . . . 2 . 2 Power . | . . . . . . . . . . . . . . Propulsion 1 | . . . . . . . 1 . . . . . . Utility 6 | . . . 1 . . . 1 . . . 2 . 2 Weapon 1 | . . . 1 . . . . . . . . . . Parts Attached 94 | 6 6 1 8 1 . . 23 19 1 19 3 4 3 Power 4 | 1 . . . . . . 2 . . . . 1 . Engine 3 | 1 . . . . . . 2 . . . . . . Core 1 | . . . . . . . . . . . . 1 . Reactor . | . . . . . . . . . . . . . . Propulsion 21 | 2 . . . . . . 5 3 . 5 2 2 2 Treads 5 | 2 . . . . . . . 3 . . . . . Leg 11 | . . . . . . . 5 . . 4 2 . . Wheel 5 | . . . . . . . . . . 1 . 2 2 Hover . | . . . . . . . . . . . . . . Flight . | . . . . . . . . . . . . . . Utility 20 | 1 4 . 2 . . . 6 3 . 4 . . . Device 4 | . . . 2 . . . 2 . . . . . . Storage 3 | 1 2 . . . . . . . . . . . . Processor 4 | . 1 . . . . . 3 . . . . . . Hackware 6 | . . . . . . . . 2 . 4 . . . Protection 3 | . 1 . . . . . 1 1 . . . . . Artifact . | . . . . . . . . . . . . . . Weapon 49 | 2 2 1 6 1 . . 10 13 1 10 1 1 1 Energy Gun 5 | 2 . . . . . . 3 . . . . . . Energy Cannon 8 | . 1 . 5 . . . 2 . . . . . . Ballistic Gun 13 | . . . . . . . . 8 . 4 1 . . Ballistic Cannon . | . . . . . . . . . . . . . . Launcher 14 | . . 1 1 1 . . 4 4 . 2 . 1 . Special Weapon 5 | . . . . . . . . . . 4 . . 1 Impact Weapon 1 | . 1 . . . . . . . . . . . . Slashing Weapon . | . . . . . . . . . . . . . . Piercing Weapon . | . . . . . . . . . . . . . . Special Melee Weapon 3 | . . . . . . . 1 1 1 . . . . Unidentified Prototypes 1 | . . . 1 . . . . . . . . . . Parts Lost 24 | . . . . . . . 3 4 1 6 . 1 9 Power 3 | . . . . . . . 1 . . 1 . . 1 Propulsion 10 | . . . . . . . . 1 1 3 . . 5 Utility 2 | . . . . . . . . 1 . . . . 1 Weapon 9 | . . . . . . . 2 2 . 2 . 1 2 Highest Loss Streak 4 | . . . . . . . 3 1 1 4 . 1 4 To Critical Strikes . | . . . . . . . . . . . . . . Average Slot Usage (%) 91 | . 96 100 95 100 100 100 95 98 99 82 75 69 41 Engine 8 | . 14 14 11 11 11 11 8 9 9 . . . . Treads 12 | . 28 28 22 22 22 22 . 12 26 . . . . Leg 9 | . . . . . . . 26 13 . 17 22 18 . Device 6 | . . . 15 22 22 22 4 3 . . . . . Storage 10 | . 13 14 11 11 11 11 9 9 9 9 7 7 4 Processor 11 | . 11 14 3 . . . 16 18 18 16 7 7 6 Hackware 3 | . . . . . . . . 2 9 10 15 15 11 Protection 1 | . . . . . . . 6 2 . . . . . Energy Gun 4 | . 16 . . . . . 12 . . . . . 1 Energy Cannon 9 | . 9 . 27 30 22 22 6 2 . . . . . Ballistic Gun 6 | . . . . . . . . 19 18 18 14 9 2 Launcher 3 | . . 13 2 2 11 11 3 3 . 1 . 4 2 Naked Turns . | . . . . . . . . . . . . . . Heaviest Build 42 | 14 30 30 37 38 38 38 42 41 37 34 31 35 35 Greatest Support 60 | 40 40 40 40 40 40 40 42 60 60 40 43 46 44 Greatest Overweight (x) 3 | . . . . . . . 1 2 . 3 1 1 . Average Overweight (x) . | . . . . . . . . . . 1 . . . Largest Inventory Capacity 15 | 8 15 15 15 15 15 15 15 15 15 15 15 15 15 Average Capacity 14 | 7 14 15 15 15 15 15 15 15 15 15 15 15 11 Most Carried 15 | 2 6 6 12 13 14 14 14 15 14 14 12 13 13 Average Carried 10 | 1 4 6 8 12 13 13 12 12 14 12 11 11 10 Final Capacity 15 | 8 15 15 15 15 15 15 15 15 15 15 15 15 5 Final Carried 14 | 2 6 6 12 13 14 13 11 14 14 12 11 13 5 Class Distribution -------------------- 33% | Mutant 20% | Skirmisher 15% | Gunner 13% | Bothacker-Skirmisher 7% | Scavenger-Skirmisher 4% | Scavenger-Mutant 3% | Bothacker-Mutant Dominant Class ---------------- Mutant | -10/Materials Mutant | -10/Mines Gunner | -9/Materials Gunner | -9/Mines Gunner | -9/Exiles Skirmisher | -8/Mines Mutant | -8/Materials Scavenger-Skirmisher | -8/Garrison Scavenger-Mutant | -8/Materials Bothacker-Skirmisher | -8/Garrison Bothacker-Skirmisher | -7/Factory Mutant | -7/DSF Mutant | -6/Factory Resources | -11 -10 -10 -9 -9 -9 -8 -8 -8 -8 -8 -7 -7 -6 ----------- Run | Yrd Mat Min Mat Min Exi Min Mat Gar Mat Gar Fac DSF Fac Matter Collected 1737 | 159 111 70 100 43 . . 247 429 . 517 . 11 50 Remotely . | . . . . . . . . . . . . . . Salvage Created 2478 | . 128 98 617 15 . . 612 436 . 439 . 83 50 Parts 159 | . 8 3 36 5 . . 40 37 . 23 . 5 2 Haulers Intercepted 1 | . 1 . . . . . . . . . . . . Recyclers Shooed . | . . . . . . . . . . . . . . Parts Field Recycled . | . . . . . . . . . . . . . . Retrieved Matter . | . . . . . . . . . . . . . . Parts Self-Destructed . | . . . . . . . . . . . . . . Prevented . | . . . . . . . . . . . . . . Kills | -11 -10 -10 -9 -9 -9 -8 -8 -8 -8 -8 -7 -7 -6 ------- Run | Yrd Mat Min Mat Min Exi Min Mat Gar Mat Gar Fac DSF Fac Combat Hostiles Destroyed 74 | . 1 3 15 4 . . 14 20 . 13 . 3 1 Guns 20 | . 1 . . . . . 2 8 . 8 . . 1 Cannons 14 | . . . 7 . . . 5 2 . . . . . AOE 40 | . . 3 8 4 . . 7 10 . 5 . 3 . Classes Destroyed 14 | . 3 2 2 . . . 2 1 . 2 . 1 1 Worker 1 | . . . . . . . 1 . . . . . . Builder 1 | . . . 1 . . . . . . . . . . Hauler 1 | . 1 . . . . . . . . . . . . Recycler 5 | . . 1 3 . . . 1 . . . . . . Operator 1 | . . . . . . . 1 . . . . . . Watcher 4 | . 1 . . . . . 3 . . . . . . Swarmer 35 | . . 3 4 4 . . 7 12 . 5 . . . Grunt 30 | . 1 . 9 . . . 6 5 . 7 . 2 . Brawler 1 | . . . . . . . . . . 1 . . . Duelist 1 | . . . . . . . . . . 1 . . . Sentry 5 | . . . 2 . . . 1 2 . . . . . Specialist 1 | . . . . . . . . . . . . 1 . Hunter 1 | . . . . . . . . 1 . . . . . Programmer 1 | . . . . . . . . . . . . . 1 Best Kill Streak 12 | . 1 4 12 4 . . 4 6 . 3 . 2 1 Combat Bots Only 9 | . 1 3 9 4 . . 4 6 . 3 . 2 1 Max Kills in Single Turn 5 | . 1 4 5 2 . . 3 2 . 2 . 1 1 Gunslinging 1 | . . . . . . . . 1 . . . . . Exploded 4 | . . 3 4 2 . . 3 2 . 2 . 1 . Melee . | . . . . . . . . . . . . . . Uniques/NPCs Destroyed . | . . . . . . . . . . . . . . Combat | -11 -10 -10 -9 -9 -9 -8 -8 -8 -8 -8 -7 -7 -6 -------- Run | Yrd Mat Min Mat Min Exi Min Mat Gar Mat Gar Fac DSF Fac Hostile Shots Fired 489 | . 10 3 32 6 . . 58 76 24 81 . 24 175 Missed 165 | . 2 1 11 2 . . 15 24 8 24 . 12 66 Damage Taken 4627 | . 81 36 275 54 . . 568 709 257 905 . 180 1562 Core 1237 | . 8 7 45 9 . . 55 73 36 132 . 22 850 Absorbed by Shields 50 | . . . . . . . . . . 50 . . . Ignored by Resistances 54 | . . . . . . . 46 8 . . . . . Regen/Repaired (Parts) 47 | . . . . . . . 47 . . . . . . Core Remaining (%) 84 | 100 . 94 . . . 86 . . . 46 . 96 . Volleys Fired 193 | . 16 1 19 3 . . 37 43 1 52 . 7 14 Largest 3 | . 2 1 3 1 . . 3 3 2 3 . 1 2 Hottest 188 | . 100 30 188 33 . . 163 128 56 84 . 36 60 Shots Fired 354 | . 30 1 50 3 . . 73 83 2 85 . 7 20 Gun 215 | . 29 . . . . . 33 60 2 70 . 1 20 Cannon 99 | . 1 . 48 . . . 36 14 . . . . . Launcher 28 | . . 1 2 3 . . 4 9 . 3 . 6 . Special 12 | . . . . . . . . . . 12 . . . Kinetic 141 | . . . . . . . . 60 2 70 . 1 8 Thermal 140 | . 30 . 48 . . . 36 14 . . . . 12 Explosive 26 | . . 1 2 3 . . 2 9 . 3 . 6 . Electromagnetic 35 | . . . . . . . 35 . . . . . . Robot Hit Streak 25 | . 7 3 9 10 . . 25 7 . 13 . 3 5 Robot Miss Streak 4 | . 1 . 4 . . . 3 4 . 2 . 1 2 Penetration Max 1 | . . . . . . . . 1 . . . . 1 Secondary Targets 4 | . . . . . . . . 2 . 2 . . . Max Gunslinging Chain 1 | . . . . . . . . 1 . 1 . . . Shots Hit Robots 213 | . 21 1 31 1 . . 51 42 . 51 . 2 13 Core Hits 132 | . 6 3 26 4 . . 27 33 . 22 . 5 6 Critical Kills . | . . . . . . . . . . . . . . Critical Parts Destroyed 2 | . . . . . . . . 1 . 1 . . . Critical Strikes 2 | . . . . . . . . 1 . 1 . . . Destroy 2 | . . . . . . . . 1 . 1 . . . Melee Attacks 19 | . 11 . . . . . 2 2 . 4 . . . Impact 11 | . 11 . . . . . . . . . . . . Slashing . | . . . . . . . . . . . . . . Piercing . | . . . . . . . . . . . . . . Sneak Attacks 3 | . . . . . . . 2 1 . . . . . Combat Hostiles . | . . . . . . . . . . . . . . Follow-up Attacks . | . . . . . . . . . . . . . . Damage Inflicted 6681 | . 275 274 1219 312 . . 1339 1516 . 1118 . 394 234 Guns 2247 | . 275 . . . . . 348 614 . 779 . 20 211 Cannons 1246 | . . . 545 . . . 551 150 . . . . . Explosions 3165 | . . 274 674 312 . . 440 752 . 339 . 374 . Melee . | . . . . . . . . . . . . . . Ramming 23 | . . . . . . . . . . . . . 23 Kinetic 1546 | . . . . . . . . 614 . 779 . 20 133 Thermal 1737 | . 275 . 545 . . . 689 150 . . . . 78 Explosive 3005 | . . 274 674 312 . . 280 752 . 339 . 374 . Electromagnetic 370 | . . . . . . . 370 . . . . . . Impact . | . . . . . . . . . . . . . . Slashing . | . . . . . . . . . . . . . . Piercing . | . . . . . . . . . . . . . . Highest Corruption 2 | . . . . . . . . . 1 1 . . 2 Average Corruption 1 | . . . . . . . . . 1 1 . . 2 Corruption Purged . | . . . . . . . . . . . . . . Corruption Blocked . | . . . . . . . . . . . . . . Effects 14 | . . . . . . . . . 1 11 . . 2 Message Errors 3 | . . . . . . . . . . 3 . . . Matter Fused 4 | . . . . . . . . . 1 1 . . 2 Heat Flow Errors 2 | . . . . . . . . . . 2 . . . Parts Fused 1 | . . . . . . . . . . 1 . . . Data Loss (minor) 2 | . . . . . . . . . . 2 . . . Misfires 1 | . . . . . . . . . . 1 . . . Alerts 1 | . . . . . . . . . . 1 . . . Overload Shots . | . . . . . . . . . . . . . . Overflow Damage 152 | . . 18 57 30 . . 46 . . 1 . . . Projectiles . | . . . . . . . . . . . . . . Explosions 152 | . . 18 57 30 . . 46 . . 1 . . . Melee . | . . . . . . . . . . . . . . Knockbacks . | . . . . . . . . . . . . . . Impact . | . . . . . . . . . . . . . . Kinetic . | . . . . . . . . . . . . . . Secondary . | . . . . . . . . . . . . . . Self-Inflicted Damage 247 | . . 21 . 23 . . . 139 . 45 . 8 11 Shots 8 | . . 1 . 1 . . . 4 . 1 . 1 . Rammed 3 | . . . . . . . . . . . . . 3 Targets Rammed 3 | . . . . . . . . . . . . . 3 Kicked . | . . . . . . . . . . . . . . Crushed . | . . . . . . . . . . . . . . Highest Temperature 372 | . 195 . 277 . . . 372 196 . 245 . . . Average Temperature 97 | . 80 . 96 . . . 143 57 . 44 . . . Received Heat Transfer 1155 | . 24 . 117 . . . 306 99 27 462 . 36 84 Effects 1 | . . . . . . . 1 . . . . . . Damage (minor) 1 | . . . . . . . 1 . . . . . . Siege Activations . | . . . . . . . . . . . . . . Robots Corrupted . | . . . . . . . . . . . . . . Combat Hostiles . | . . . . . . . . . . . . . . Parts Fried 1 | . . . . . . . 1 . . . . . . Impact Corruptions . | . . . . . . . . . . . . . . Robots Melted . | . . . . . . . . . . . . . . Combat Hostiles . | . . . . . . . . . . . . . . Parts Melted 7 | . 2 . 2 . . . . . . . . . 3 Heat Transferred 3739 | . 814 . 1147 . . . 1223 296 . . . . 259 Parts Sabotaged . | . . . . . . . . . . . . . . Parts Stolen . | . . . . . . . . . . . . . . Parts Stripped . | . . . . . . . . . . . . . . Power Chain Reactions 1 | . . . . . . . 1 . . . . . . Alert | -11 -10 -10 -9 -9 -9 -8 -8 -8 -8 -8 -7 -7 -6 ------- Run | Yrd Mat Min Mat Min Exi Min Mat Gar Mat Gar Fac DSF Fac Peak Influence 613 | . 55 81 464 115 . . 165 576 297 613 321 310 203 Initial 321 | . . . 31 92 . . . 1 271 193 321 224 158 Average 176 | . 16 77 252 91 . . 62 362 274 341 321 262 144 Maximum Alert Level 2 | . . . 2 . . . . 2 1 2 1 1 1 Low Security (%) 61 | 100 100 100 28 100 . 100 100 19 . 7 . . 98 Level 1 27 | . . . 58 . . . . 30 100 69 100 100 1 Level 2 11 | . . . 12 . . . . 49 . 22 . . . Level 3 . | . . . . . . . . . . . . . . Level 4 . | . . . . . . . . . . . . . . Level 5 . | . . . . . . . . . . . . . . High Security . | . . . . . . . . . . . . . . Max Security . | . . . . . . . . . . . . . . Squads Dispatched 12 | . 2 . 1 . . . 2 . 1 . . 2 4 Investigation 5 | . 2 . . . . . 1 . . . . . 2 Extermination 1 | . . . . . . . . . . . . . 1 Reinforcement 6 | . . . 1 . . . 1 . 1 . . 2 1 Assault . | . . . . . . . . . . . . . . Garrison . | . . . . . . . . . . . . . . Intercept . | . . . . . . . . . . . . . . Searches Triggered . | . . . . . . . . . . . . . . Construction Impeded . | . . . . . . . . . . . . . . Haulers Reinforced 1 | . . . . . . . . . . . . . 1 Active Scanning Responses . | . . . . . . . . . . . . . . Cargo Convoy Interrupts . | . . . . . . . . . . . . . . Alert ID Control Effect 3 | . . . . . . . . . . 1 . 2 . Stealth | -11 -10 -10 -9 -9 -9 -8 -8 -8 -8 -8 -7 -7 -6 --------- Run | Yrd Mat Min Mat Min Exi Min Mat Gar Mat Gar Fac DSF Fac Distress Signals 4 | . . . 3 . . . . . 1 . . . . Communications Jammed . | . . . . . . . . . . . . . . Distress Signals . | . . . . . . . . . . . . . . Times Spotted 122 | . 9 3 20 4 . . 15 23 7 24 . 6 11 Peak Tracking Total 9 | . 4 3 9 4 . . 4 4 8 4 . 3 6 Tactical Retreats 5 | . . . . . . . . 1 . . . 1 3 Traps | -11 -10 -10 -9 -9 -9 -8 -8 -8 -8 -8 -7 -7 -6 ------- Run | Yrd Mat Min Mat Min Exi Min Mat Gar Mat Gar Fac DSF Fac Traps Triggered 13 | . 2 . . . . . . 1 1 8 . . 1 Indirectly . | . . . . . . . . . . . . . . Trap Hack Attempts . | . . . . . . . . . . . . . . Triggered . | . . . . . . . . . . . . . . Disarmed . | . . . . . . . . . . . . . . Reprogrammed . | . . . . . . . . . . . . . . Reused . | . . . . . . . . . . . . . . Traps Extracted . | . . . . . . . . . . . . . . Installed . | . . . . . . . . . . . . . . Triggered . | . . . . . . . . . . . . . . Machines | -11 -10 -10 -9 -9 -9 -8 -8 -8 -8 -8 -7 -7 -6 ---------- Run | Yrd Mat Min Mat Min Exi Min Mat Gar Mat Gar Fac DSF Fac Machines Disabled 16 | . . . 4 . . . 2 3 1 5 . 1 . Max in Single Turn 2 | . . . 2 . . . 1 1 1 1 . 1 . Garrison Relay 6 | . . . . . . . . 2 . 4 . . . Machines Repaired . | . . . . . . . . . . . . . . Machines Dismantled . | . . . . . . . . . . . . . . Machines Sabotaged . | . . . . . . . . . . . . . . Overloaded Fab Kills . | . . . . . . . . . . . . . . Hacking | -11 -10 -10 -9 -9 -9 -8 -8 -8 -8 -8 -7 -7 -6 --------- Run | Yrd Mat Min Mat Min Exi Min Mat Gar Mat Gar Fac DSF Fac Machines Accessed 26 | . 2 . 3 . 1 . 8 3 1 3 1 . 4 Terminals 19 | . 2 . 3 . . . 5 3 . 3 1 . 2 Fabricators . | . . . . . . . . . . . . . . Repair Stations 4 | . . . . . . . 2 . . . . . 2 Recycling Units . | . . . . . . . . . . . . . . Scanalyzers . | . . . . . . . . . . . . . . Garrison Access 2 | . . . . . . . 1 . 1 . . . . Total Hacks 59 | . 4 . 12 . 1 . 19 6 1 7 2 . 7 Successful 22 | . 1 . 6 . 1 . 9 . 1 1 1 . 2 Failed 37 | . 3 . 6 . . . 10 6 . 6 1 . 5 Catastrophic 9 | . . . 3 . . . 1 3 . 1 . . 1 Database Lockouts . | . . . . . . . . . . . . . . Manual 16 | . 3 . 6 . 1 . 4 . . . . . 2 Terminals 49 | . 4 . 12 . . . 14 6 . 7 2 . 4 Fabricators . | . . . . . . . . . . . . . . Repair Stations 7 | . . . . . . . 4 . . . . . 3 Recycling Units . | . . . . . . . . . . . . . . Scanalyzers . | . . . . . . . . . . . . . . Garrison Access 2 | . . . . . . . 1 . 1 . . . . Terminal Hacks 15 | . 1 . 6 . 1 . 4 . . 1 1 . 1 Prototype ID Bank 3 | . . . 1 . . . 2 . . . . . . Open DSF 2 | . . . . . . . . . . . 1 . 1 Branch Access Points 1 | . . . 1 . . . . . . . . . . Emergency Access Points 1 | . . . 1 . . . . . . . . . . Alert Level 1 | . . . 1 . . . . . . . . . . Unreport Threat 1 | . . . 1 . . . . . . . . . . Security Status 1 | . . . 1 . . . . . . . . . . Zone Layout 3 | . 1 . . . . . 2 . . . . . . Garrison Registry 1 | . . . . . . . . . . 1 . . . Derelict Proto ID Bank 1 | . . . . . 1 . . . . . . . . Fabricator Hacks . | . . . . . . . . . . . . . . Repair Station Hacks 3 | . . . . . . . 2 . . . . . 1 Scan Component 1 | . . . . . . . 1 . . . . . . Repair 1 | . . . . . . . 1 . . . . . . Refit 1 | . . . . . . . . . . . . . 1 Recycling Unit Hacks . | . . . . . . . . . . . . . . Scanalyzer . | . . . . . . . . . . . . . . Garrison Access Hacks 2 | . . . . . . . 1 . 1 . . . . Unlock Access 2 | . . . . . . . 1 . 1 . . . . Unauthorized Hacks 2 | . . . . . . . 2 . . . . . . Terminals 2 | . . . . . . . 2 . . . . . . Botnet 2 | . . . . . . . 2 . . . . . . Fabricators . | . . . . . . . . . . . . . . Repair Stations . | . . . . . . . . . . . . . . Recycling Units . | . . . . . . . . . . . . . . Scanalyzers . | . . . . . . . . . . . . . . Garrison Access . | . . . . . . . . . . . . . . Data Cores Recovered 1 | . . . . . . . 1 . . . . . . Used 1 | . . . . . . . 1 . . . . . . Hacking Detections 20 | . 2 . 3 . . . 6 3 . 3 1 . 2 Full Trace Events 8 | . . . 2 . . . 1 2 . 1 . . 2 Feedback Events . | . . . . . . . . . . . . . . Feedback Blocked . | . . . . . . . . . . . . . . Robot Schematics Acquired . | . . . . . . . . . . . . . . Robots Built . | . . . . . . . . . . . . . . Authchips . | . . . . . . . . . . . . . . Time . | . . . . . . . . . . . . . . Total Robot Build Rating . | . . . . . . . . . . . . . . Part Schematics Acquired . | . . . . . . . . . . . . . . Parts Built . | . . . . . . . . . . . . . . Authchips . | . . . . . . . . . . . . . . Time . | . . . . . . . . . . . . . . Total Part Build Rating . | . . . . . . . . . . . . . . Parts Repaired 1 | . . . . . . . 1 . . . . . . Time 38 | . . . . . . . 38 . . . . . . Parts Recycled . | . . . . . . . . . . . . . . Recycled Matter . | . . . . . . . . . . . . . . Retrieved Matter . | . . . . . . . . . . . . . . Retrieved Components . | . . . . . . . . . . . . . . Parts Scanalyzed . | . . . . . . . . . . . . . . Part Schematics Acquired . | . . . . . . . . . . . . . . Parts Damaged . | . . . . . . . . . . . . . . Bothacking | -11 -10 -10 -9 -9 -9 -8 -8 -8 -8 -8 -7 -7 -6 ------------ Run | Yrd Mat Min Mat Min Exi Min Mat Gar Mat Gar Fac DSF Fac Used RIF Installer 3 | . . . . . . . . 2 . 1 . . . Command Fork 1 | . . . . . . . . 1 . . . . . Alert ID Control 1 | . . . . . . . . . . 1 . . . Robots Hacked 13 | . . . . . . . 1 1 . 11 . . . Non-combat 1 | . . . . . . . 1 . . . . . . Combat 12 | . . . . . . . . 1 . 11 . . . Robot Hacks Applied 13 | . . . . . . . 1 1 . 11 . . . parse_system 1 | . . . . . . . 1 . . . . . . overload_power 3 | . . . . . . . . . . 3 . . . go_dormant 1 | . . . . . . . . . . 1 . . . overwrite_iff 2 | . . . . . . . . . . 2 . . . streamctrl_high 2 | . . . . . . . . . . 2 . . . formatsys_high 4 | . . . . . . . . 1 . 3 . . . Relay Couplers Released 26 | . . . . . . . . 7 . 19 . . . Machine Destruction 23 | . . . . . . . . 7 . 16 . . . Programmers 3 | . . . . . . . . . . 3 . . . Attached 6 | . . . . . . . . 2 . 4 . . . Fabnet Peak Effective % . | . . . . . . . . . . . . . . Robots Rewired 3 | . . . . . . . . . . 3 . . . Allies Hacked . | . . . . . . . . . . . . . . Hacks Repelled . | . . . . . . . . . . . . . . Allies | -11 -10 -10 -9 -9 -9 -8 -8 -8 -8 -8 -7 -7 -6 -------- Run | Yrd Mat Min Mat Min Exi Min Mat Gar Mat Gar Fac DSF Fac Total Allies 11 | . . . . . . . . 1 . 10 . . . Largest Group 3 | . . . . . . . . 1 . 3 3 3 . Highest-Rated Group 47 | . . . . . . . . 15 . 47 47 47 . Highest-Rated Ally 16 | . . . . . . . . 15 . 16 16 16 . Total Orders . | . . . . . . . . . . . . . . Ally Attacks 47 | . . . . . . . . 3 . 35 . 9 . Total Damage 542 | . . . . . . . . 59 . 330 . 153 . Kills 6 | . . . . . . . . 1 . 3 . 2 . Allies Corrupted . | . . . . . . . . . . . . . . Allies Melted . | . . . . . . . . . . . . . . Intel | -11 -10 -10 -9 -9 -9 -8 -8 -8 -8 -8 -7 -7 -6 ------- Run | Yrd Mat Min Mat Min Exi Min Mat Gar Mat Gar Fac DSF Fac Robot Analysis Total . | . . . . . . . . . . . . . . Derelict Logs Recovered 2 | . . 1 . 1 . . . . . . . . . Drone Launches . | . . . . . . . . . . . . . . Drone Recoveries . | . . . . . . . . . . . . . . Exploration | -11 -10 -10 -9 -9 -9 -8 -8 -8 -8 -8 -7 -7 -6 ------------- Run | Yrd Mat Min Mat Min Exi Min Mat Gar Mat Gar Fac DSF Fac Turns Passed 7398 | 76 947 287 488 481 341 516 1228 977 229 1222 166 86 354 Spaces Moved 3936 | 44 244 175 233 268 213 308 569 575 139 637 96 46 389 Core 147 | 4 . . . . . . . . . . . . 143 Treads 1912 | 40 244 175 233 268 213 308 16 244 139 32 . . . Legs 1431 | . . . . . . . 553 331 . 418 96 33 . Wheels 426 | . . . . . . . . . . 187 . 13 226 Hover 20 | . . . . . . . . . . . . . 20 Flight . | . . . . . . . . . . . . . . Fastest Speed 50 | 50 160 160 160 160 160 160 123 123 160 110 120 100 50 Average Speed 141 | 150 160 160 160 160 160 160 126 140 160 140 158 137 80 Slowest Speed 330 | 160 160 160 160 160 160 160 193 320 160 330 190 190 100 Overloaded Moves . | . . . . . . . . . . . . . . Propulsion Burnouts . | . . . . . . . . . . . . . . Robots Hopped . | . . . . . . . . . . . . . . Cave-ins Triggered . | . . . . . . . . . . . . . . Exploration Rate (%) 38 | 3 38 46 25 47 60 56 43 71 24 61 2 45 12 Regions Visited 13 Branch Regions 4 Pre-discovered Areas . | . . . . . . . . . . . . . . Known Exits Taken 5 | . . . 1 . . 1 1 . 1 . 1 . . Unknown Exits Taken 5 | 1 1 1 . 1 1 . . . . . . . . Scrap Searched 1 | . . . . . . 1 . . . . . . . Spaces Dug 62 | . 2 . . 21 . . 8 13 . 18 . . . Terrain Destroyed 208 | . 2 6 33 36 . . 19 33 . 24 . 55 . Melee 2 | . 2 . . . . . . . . . . . . Projectile 3 | . . . . . . . . 2 . 1 . . . AOE 202 | . . 6 33 36 . . 19 31 . 22 . 55 . Terrain Rammed . | . . . . . . . . . . . . . . Walls Destroyed . | . . . . . . . . . . . . . . Machines Disabled . | . . . . . . . . . . . . . . Actions | -11 -10 -10 -9 -9 -9 -8 -8 -8 -8 -8 -7 -7 -6 --------- Run | Yrd Mat Min Mat Min Exi Min Mat Gar Mat Gar Fac DSF Fac Total 5430 | 51 751 181 308 317 213 333 1002 665 143 885 110 61 410 Wait 1026 | . 468 5 40 45 . 21 353 14 . 70 10 . . Move 3925 | 43 243 174 232 267 212 307 569 574 139 636 95 45 389 Hop . | . . . . . . . . . . . . . . Pick Up 37 | 2 2 . 5 1 1 2 6 4 1 11 . 2 . Fast Attach 44 | 6 6 . 5 . . . 7 10 . 4 2 3 1 Attach 20 | . . . 1 . . . 10 2 . 4 1 . 2 Detach 9 | . 2 . 2 . . . 3 2 . . . . . Swap 30 | . . 1 2 1 . . 6 7 1 11 . 1 . Drop 39 | . 3 . 2 . . 3 9 7 1 8 2 3 1 Fire 193 | . 16 1 19 3 . . 37 43 1 52 . 7 14 Melee 19 | . 11 . . . . . 2 2 . 4 . . . Ram 3 | . . . . . . . . . . . . . 3 Kick . | . . . . . . . . . . . . . . Crush . | . . . . . . . . . . . . . . Escape Stasis 55 | . . . . . . . . . . 55 . . . Rewire 30 | . . . . . . . . . . 30 . . . Trap . | . . . . . . . . . . . . . . Miscellaneous . | . . . . . . . . . . . . . . Route ------- -11/Scrapyard -10/Materials -10/Mines (discovered 2 exits: *Mat x2) -9/Materials (discovered 2 exits: Mat / *Min) -9/Mines -9/Exiles -8/Mines -8/Materials -8/Garrison (discovered 3 exits: *Mat x3) -8/Materials (discovered 2 exits: *Fac / Gar) -8/Garrison (discovered 4 exits: *Fac x3 / [*Mat]) -7/Factory -7/DSF -6/Factory History --------- Turn | Location | Event 42 | -11/Scrapyard | Discovered new exit (range 15) 77 | -11/Scrapyard | Entered Materials 119 | -10/Materials | Discovered new exit (range 9) 318 | -10/Materials | Build established: Mutant 1024 | -10/Materials | Entered Mines 1031 | -10/Mines | Learned 4 Materials zone layouts 1031 | -10/Mines | Discovered new exit (range 8) 1265 | -10/Mines | Discovered new exit (range 12) 1311 | -10/Mines | Entered Materials 1311 | -9/Materials | Evolved 2 slots: Utility x1, Weapon x1 1312 | -9/Materials | Identified exit to Materials 1469 | -9/Materials | Destroyed 9 combat bots 1754 | -9/Materials | Identified exit to Mines 1777 | -9/Materials | Build established: Gunner 1799 | -9/Materials | Entered Mines 1957 | -9/Mines | Received a Rocket Launcher from a helpful Derelict 2159 | -9/Mines | Learned Materials emergency access door positions 2274 | -9/Mines | Deemed a non-threat by the Exiles lab entrance 2274 | -9/Mines | Discovered new exit (range 5) 2280 | -9/Mines | Entered Exiles 2325 | -9/Exiles | Met 8R-AWN 2348 | -9/Exiles | Met EX-HEX 2392 | -9/Exiles | Met EX-BIN 2415 | -9/Exiles | Aligned with FarCom system 2416 | -9/Exiles | Given EX-Vault access code 2453 | -9/Exiles | Opened EX-Vault 2464 | -9/Exiles | Found 0b10 Alert Chip 2497 | -9/Exiles | Warned to stay clear of 0b10 Research branches 2542 | -9/Exiles | Met EX-DEC 2598 | -9/Exiles | Discovered new exit (range 14) 2621 | -9/Exiles | Left Exiles lab with 0b10 Alert Chip 2621 | -9/Exiles | Entered Mines 2915 | -8/Mines | Build established: Skirmisher 2933 | -8/Mines | Discovered exit to Materials (range 11) 3137 | -8/Mines | Entered Materials 3137 | -8/Materials | Evolved 2 slots: Propulsion x1, Utility x1 3625 | -8/Materials | Build established: Mutant 3773 | -8/Materials | Repaired Shock Rifle 4059 | -8/Materials | Lost 3 parts (1p2w) 4252 | -8/Materials | Build established: Skirmisher 4365 | -8/Materials | Identified exit to Garrison 4365 | -8/Materials | Entered Garrison 4491 | -8/Garrison | Triggered checkpoint 4623 | -8/Garrison | Discovered new exit (range 11) 4679 | -8/Garrison | Triggered checkpoint 4919 | -8/Garrison | Discovered new exit (range 10) 5001 | -8/Garrison | Triggered checkpoint 5027 | -8/Garrison | Garrison Relay disabled 5045 | -8/Garrison | Installed Relay Interface Framework 5199 | -8/Garrison | Triggered checkpoint 5260 | -8/Garrison | Discovered new exit (range 15) 5291 | -8/Garrison | Expanded RIF knowledge: Command Fork 5317 | -8/Garrison | Triggered checkpoint 5342 | -8/Garrison | Entered Materials 5517 | -8/Materials | Discovered new exit (range 4) 5571 | -8/Materials | Identified exit to Garrison 5571 | -8/Materials | Entered Garrison 5619 | -8/Garrison | Triggered checkpoint 5678 | -8/Garrison | Lost 4 parts (1p2n1w) 5678 | -8/Garrison | Garrison Relay disabled 5751 | -8/Garrison | Triggered checkpoint 5846 | -8/Garrison | Discovered new exit (range 10) 5885 | -8/Garrison | Triggered checkpoint 5918 | -8/Garrison | Garrison Relay disabled 5979 | -8/Garrison | Triggered checkpoint 6049 | -8/Garrison | Discovered new exit (range 5) 6093 | -8/Garrison | Build established: Bothacker-Skirmisher 6205 | -8/Garrison | Triggered checkpoint 6207 | -8/Garrison | Triggered checkpoint 6287 | -8/Garrison | Expanded RIF knowledge: Alert ID Control 6323 | -8/Garrison | Triggered checkpoint 6350 | -8/Garrison | Garrison Relay disabled 6410 | -8/Garrison | Discovered new exit (range 8) 6514 | -8/Garrison | Core integrity fell below 50% 6580 | -8/Garrison | Discovered new exit (range 13) 6647 | -8/Garrison | Triggered checkpoint 6704 | -8/Garrison | Discovered new exit (range 13) 6704 | -8/Garrison | Discovered new exit (range 53) 6704 | -8/Garrison | Discovered new exit (range 71) 6704 | -8/Garrison | Discovered new exit (range 71) 6733 | -8/Garrison | Garrison Relay disabled 6793 | -8/Garrison | Entered Factory 6793 | -7/Factory | Accompanied by 3 allies 6793 | -7/Factory | Evolved 2 slots: Utility x2 6802 | -7/Factory | Identified exit to DSF 6959 | -7/Factory | Entered DSF 6959 | -7/DSF | Accompanied by 3 allies 6996 | -7/DSF | Additional patrols routed to DSF 6997 | -7/DSF | Discovered new exit (range 16) 7045 | -7/DSF | Entered Factory 7045 | -6/Factory | Evolved 2 slots: Utility x2 7047 | -6/Factory | Lost 3 allies 7224 | -6/Factory | Lost 4 parts (1p1n2w) 7288 | -6/Factory | Build established: Mutant 7290 | -6/Factory | Core integrity fell below 50% 7324 | -6/Factory | Core integrity fell below 20% 7399 | -6/Factory | Destroyed by P-60 Hacker with Shock Rifle Last Messages --------------- 07349_ ALERT: Suspicious activity at Repair Station F001. Dispatching Investigation squad. 07354_ K-01 Serf cleans the Terminal. 07365_ Connecting with Repair Station... >>Refit Scanning configuration... Attaching: Backup Power I x1 Backup Propulsion I x2 Backup Laser I x2 07366_ ALERT: Security rotation in progress. 07389_ Imp. Heat Sink melted. 07389_ Target Analyzer melted. 07389_ Gravmag System melted. 07389_ P-60 Hacker destroyed. 07394_ Drone sends a signal. 07395_ Acquired 50 matter. 07396_ Backup Propulsion I destroyed. 07396_ Acquired Remote Datajack. [Achievement: Overachiever] Map ----- +----------------------------------------------------+ | #######??????????????????????????????????????????? | | ?????????????????????????????????????????????????? | | ?????????????????????????????????????????????????? | | ?????????????????????????????????????????????????? | | ?????????????????????????????????????????????????? | | ?????????????????????????????????????????????????? | | ######???????????????????????????????????????????? | | ] #???????????????????????????????????????????? | | #???????????????????????????????????????????? | | #???????????????????????????????????????????? | | #?????########??????????????????????????????? | | #?????# #??????????????????????????????? | | #?????# """ #??????????????????????????????? | | #?????# R" #??????????????????????????????? | | #?????# """ #??????????????????????????????? | | ######?????# #??????????????????????????????? | | ???????????# *#??????????????????????????????? | | ???????????####+###??????????????????????????????? | | ????????????# #??????????????????????????????? | | ############# "" #??????????????????????????????? | | T #??????????????????????????????? | | #?####### #??????????????????????????????? | | #???????# #??????????????????????????????? | | #???????## ##????????????? #??????????????? | | #####????????# ########### #??????????????? | | ###??????????# p ! @ u ????????? | | =#??????????# ############+####???????????????? | | #??????????# Y#???????????????????????????????? | | #??????????# #???????????????????????????????? | | #??????????# #???????????????????????????????? | | #??????????+h ###########?????????????????????? | | #??????????# # #?????????????????????? | | ###??????????# # """ #?????????????????????? | | ?????????????# # ""R" #?????????????????????? | | ?????????????# h # "" " ! #?????????????????????? | | ?????????????+ + #?????????????????????? | | ?????????????# # ! ! #?????????????????????? | | ?????????????# # * #?????????????????????? | | ?????????????# # ! #?????????????????????? | | ?????????????# ##+##########???????????????????? | | ?????????????# ????????????? | | ############## #############???????????????????? | | #???????????????????????????????? | | ########+###+##???????????????????????????????? | | # ! # ????????????????????????????????????? | | + # ""????????????????????????????????????? | | #### !!=# "Y"???????????????????????????????????? | | ????= != # " "???????????????????????????????????? | | ????? != # ??????????????????????????????????? | | ????? # ??????????????????????????????????? | +----------------------------------------------------+ Best States ------------- Heat Dissipation 51 Coolant Potential 50 Energy Generation 14 Energy Capacity 250 Matter Stores 300 Matter Capacity 300 Sight Range 18 Terrain Scan Density 10 Armor Coverage 150 Resistance: TH 10 Evasion (%) 55 Targeting Accuracy 6 Recoil Reduction 3 Relay Coupler Types 2 Relay Coupler Value 37 Item Schematics ----------------- None Robot Schematics ------------------ None Fabricated ------------ Nothing Alien Tech Used ----------------- None Achievements -------------- Error 47 Overachiever Challenges ------------ None Game ------ Seed NeutrinoConcussiveWeb Manual? 0 Play Time 00:55:09 Cumulative 74.4 hours Start 2024.05.06 @ 17:57:39 End 2024.05.06 @ 18:57:04 Sessions 1 Manual Loads 0 Difficulty Rogue Special Mode None Game No. 68 Rogue 68 Adventurer 0 Explorer 0 Win Type - Total 2 Types 2/0/0/0/0/0/0/0/0 Lore% 54 Gallery% 60 Achievement% 50 Wizard Run 0 Options --------- Layout 0 ASCII 0 Keyboard 0 Movement Mouse Keybinds 0 Fullscreen 1 Font 18/Terminus Map View 76x50 Zoom Use 0% Tactical HUD 1 Map Filters NONE Filters NONE Steam 1 RUN: 24ef6b5d-c281-406f-954b-6aaec74281a8